bitfinex/quotes_BTCUSD_20251025
["timestamp","ask_amount","ask_price","bid_price","bid_amount"]
[1761405063920,0.18051709,111410.0,111400.0,0.59195038]
[1761405064102,0.17951709,111410.0,111400.0,0.58595038]
[1761405064310,0.17951709,111410.0,111400.0,0.31942451]
[1761405064528,0.17951709,111410.0,111400.0,0.58595038]
[1761405064971,0.17951709,111410.0,111400.0,0.58695038]
[1761405065412,0.18151709,111410.0,111400.0,0.58795038]
[1761405066463,0.18151709,111410.0,111400.0,0.58695038]
[1761405066661,0.18151709,111410.0,111400.0,0.58795038]
[1761405067464,0.18151709,111410.0,111400.0,0.58838469]
[1761405068322,0.002,111410.0,111400.0,0.58838469]
[1761405068521,0.18151709,111410.0,111400.0,0.58838469]
[1761405071011,0.002,111410.0,111400.0,0.58838469]
[1761405081829,0.002,111410.0,111400.0,0.32185882]
[1761405082053,0.002,111410.0,111400.0,0.58838469]
[1761405089126,0.002,111410.0,111400.0,1.35461054]
[1761405089328,0.002,111410.0,111400.0,1.39154311]
[1761405090160,0.00049183,111440.0,111430.0,0.17948487]
[1761405090450,0.00049183,111440.0,111430.0,0.76889823]
[1761405090652,0.00049183,111440.0,111430.0,0.78713203]
[1761405092682,0.00349183,111440.0,111430.0,0.78813203]
[1761405093088,0.00349183,111440.0,111430.0,0.78913203]
[1761405098282,0.00349183,111440.0,111430.0,0.52260616]
[1761405098488,0.00349183,111440.0,111430.0,0.78913203]
[1761405114113,0.00349183,111440.0,111430.0,1.40565788]
[1761405114354,0.02693026,111490.0,111480.0,0.17940437]
[1761405114582,0.1793726,111500.0,111490.0,0.03618228]
[1761405114820,0.17952015,111500.0,111490.0,0.30538957]
[1761405115479,0.17952015,111500.0,111490.0,0.12600129]
[1761405115920,0.18652015,111500.0,111490.0,0.12700129]
[1761405116146,0.82230105,111500.0,111490.0,0.09081901]
[1761405116966,0.96952006,111500.0,111490.0,0.001]
[1761405120979,0.99644754,111500.0,111490.0,0.001]
[1761405122358,1.06325471,111500.0,111490.0,0.001]
[1761405123047,0.99644754,111500.0,111490.0,0.001]
[1761405123465,0.84922853,111500.0,111490.0,0.001]
[1761405123677,1.06434853,111500.0,111490.0,0.001]
[1761405124563,1.13028126,111500.0,111490.0,0.001]
[1761405126061,1.14950372,111500.0,111490.0,0.001]
[1761405126501,1.02617099,111500.0,111490.0,0.001]
[1761405126705,1.17339,111500.0,111490.0,0.001]
[1761405126937,1.15416754,111500.0,111490.0,0.001]
[1761405128056,1.00690853,111500.0,111490.0,0.001]
[1761405128685,0.63998105,111500.0,111490.0,0.001]
[1761405128892,0.97998105,111500.0,111490.0,0.001]
[1761405129714,0.98006105,111500.0,111490.0,0.001]
[1761405132561,0.82230105,111500.0,111490.0,0.001]
[1761405132773,0.98006105,111500.0,111490.0,0.001]
[1761405134531,1.06988006,111500.0,111490.0,0.001]
[1761405138486,0.98006105,111500.0,111490.0,0.001]
[1761405138683,0.82230105,111500.0,111490.0,0.001]
[1761405138943,0.98002105,111500.0,111490.0,0.001]
[1761405143303,0.9992792,111500.0,111490.0,0.001]
[1761405154234,0.9991992,111500.0,111490.0,0.001]
[1761405155626,0.9991592,111500.0,111490.0,0.001]
[1761405155876,1.06817274,111500.0,111490.0,0.001]
[1761405157417,0.9991592,111500.0,111490.0,0.001]
[1761405165904,0.7033783,111500.0,111490.0,0.001]
[1761405166116,0.9991592,111500.0,111490.0,0.001]
[1761405171623,0.7033783,111500.0,111490.0,0.001]
[1761405171829,0.9991592,111500.0,111490.0,0.001]
[1761405173413,1.08897821,111500.0,111490.0,0.001]
[1761405174826,1.05950807,111500.0,111490.0,0.001]
[1761405176115,1.08643332,111500.0,111490.0,0.001]
[1761405177297,0.99661431,111500.0,111490.0,0.001]
[1761405178203,0.97735616,111500.0,111490.0,0.001]
[1761405181211,0.99666337,111500.0,111490.0,0.001]
[1761405182371,0.99666469,111500.0,111490.0,0.001]
[1761405182793,0.84706469,111500.0,111490.0,0.001]
[1761405182961,1.00454469,111500.0,111490.0,0.001]
[1761405189706,1.36067446,111500.0,111490.0,0.001]
[1761405189909,1.0943637,111500.0,111490.0,0.001]
[1761405192687,1.36067446,111500.0,111490.0,0.001]
[1761405192879,1.38481013,111500.0,111490.0,0.001]
[1761405193326,1.45180564,111500.0,111490.0,0.001]
[1761405193459,1.18549488,111500.0,111490.0,0.001]
[1761405194488,1.54162465,111500.0,111490.0,1e-08]
[1761405194903,1.63605465,111500.0,111490.0,1e-08]
[1761405195080,1.66823333,111500.0,111490.0,1e-08]
[1761405195645,1.63605465,111500.0,111490.0,1e-08]
[1761405196006,0.17945266,111450.0,111440.0,0.03618228]
[1761405196238,0.17945266,111450.0,111440.0,0.12600129]
[1761405197227,0.17945266,111450.0,111440.0,0.12614819]
[1761405197432,0.18045266,111450.0,111440.0,0.12614819]
[1761405212329,0.18045266,111450.0,111440.0,0.28362819]
[1761405216494,0.18045266,111450.0,111440.0,0.54993895]
[1761405217665,0.18045266,111450.0,111440.0,0.28362819]
[1761405218890,0.18045266,111450.0,111440.0,0.54993895]
[1761405220453,0.20738611,111450.0,111440.0,0.54993895]
[1761405220924,0.18045266,111450.0,111440.0,0.54993895]
[1761405225845,0.18045266,111450.0,111440.0,0.28362819]
[1761405226044,0.18045266,111450.0,111440.0,0.54993895]
[1761405226973,0.44676342,111450.0,111440.0,0.12614819]
[1761405227225,0.44676342,111450.0,111440.0,0.08996591]
[1761405227226,0.86783015,111450.0,111440.0,0.08996591]
[1761405227640,0.89476638,111450.0,111440.0,0.08996591]
[1761405236916,0.62845562,111450.0,111440.0,0.08996591]
[1761405242268,0.54738889,111450.0,111440.0,0.08996591]
[1761405242624,0.20738889,111450.0,111440.0,0.08996591]
[1761405246499,0.18045266,111450.0,111440.0,0.08996591]
[1761405253655,0.47656706,111450.0,111440.0,0.08996591]
[1761405254451,0.18045266,111450.0,111440.0,0.08996591]
[1761405266475,0.56061022,111450.0,111440.0,0.08996591]
[1761405272023,0.26449582,111450.0,111440.0,0.08996591]
[1761405280695,0.29143207,111450.0,111440.0,0.08996591]
[1761405298805,0.55791958,111450.0,111440.0,0.08996591]
[1761405300390,0.20738891,111450.0,111440.0,0.08996591]
[1761405300880,0.18045266,111450.0,111440.0,0.08996591]
[1761405301093,0.18045266,111450.0,111440.0,0.35645342]
[1761405301534,0.18045266,111450.0,111440.0,0.08996591]
[1761405303192,0.18045266,111450.0,111440.0,0.24744591]
[1761405305613,0.18045266,111450.0,111440.0,0.51393342]
[1761405306138,0.18045266,111450.0,111440.0,0.24744591]
[1761405306320,0.18045266,111450.0,111440.0,0.51393342]
[1761405307577,0.18045266,111450.0,111440.0,0.72958447]
[1761405307807,0.001,111450.0,111440.0,0.72958447]
[1761405308000,0.001,111450.0,111440.0,0.7565162]
[1761405310026,0.001,111450.0,111440.0,0.8139162]
[1761405310228,0.001,111450.0,111440.0,0.54742869]
[1761405310431,0.001,111450.0,111440.0,0.8139162]
[1761405310987,0.17945045,111460.0,111450.0,0.17945266]
[1761405311199,0.17943656,111460.0,111450.0,0.58988672]
[1761405311395,0.17943656,111460.0,111450.0,0.57194146]
[1761405311637,0.17943656,111460.0,111450.0,0.30545395]
[1761405311841,0.17943656,111460.0,111450.0,0.33238408]
[1761405312380,0.17943656,111460.0,111450.0,0.59887159]
[1761405312798,0.18043656,111460.0,111450.0,0.60187159]
[1761405313790,0.001,111460.0,111450.0,0.60187159]
[1761405316035,0.18043656,111460.0,111450.0,0.60187159]
[1761405322878,0.18043656,111460.0,111450.0,0.33538408]
[1761405323073,0.18043656,111460.0,111450.0,0.60187159]
[1761405329288,0.18043656,111460.0,111450.0,0.57494146]
[1761405334618,0.18043656,111460.0,111450.0,0.60187075]
[1761405340610,0.18043656,111460.0,111450.0,0.57494146]
[1761405345388,0.18043656,111460.0,111450.0,0.30845395]
[1761405345590,0.18043656,111460.0,111450.0,0.3954888]
[1761405345924,0.18043656,111460.0,111450.0,0.63234146]
[1761405346476,0.001,111460.0,111450.0,0.63234146]
[1761405349505,0.001,111460.0,111450.0,0.89882897]
[1761405349906,0.001,111460.0,111450.0,0.92575587]
[1761405350106,0.001,111460.0,111450.0,0.65926836]
[1761405351098,0.001,111460.0,111450.0,0.92575587]
[1761405351306,0.001,111460.0,111450.0,0.65926836]
[1761405352273,0.001,111460.0,111450.0,0.92575587]
[1761405352433,0.001,111460.0,111450.0,0.65926836]
[1761405355373,0.001,111460.0,111450.0,0.39278085]
[1761405355745,0.001,111460.0,111450.0,0.65926836]
[1761405360377,0.18043656,111460.0,111450.0,0.51399857]
[1761405360846,0.001,111460.0,111450.0,0.55018085]
[1761405361263,0.18043656,111460.0,111450.0,0.37072819]
[1761405361398,0.18043656,111460.0,111450.0,0.31332819]
[1761405361693,0.18043656,111460.0,111450.0,0.28640129]
[1761405364364,0.18043656,111460.0,111450.0,0.46585395]
[1761405375099,0.001,111460.0,111450.0,0.46585395]
[1761405375231,0.18043656,111460.0,111450.0,0.46585395]
[1761405386381,0.18043656,111460.0,111450.0,0.52325395]
[1761405389707,0.001,111460.0,111450.0,0.52325395]
[1761405393541,0.18043656,111460.0,111450.0,0.52325395]
[1761405407969,0.001,111460.0,111450.0,0.52325395]
[1761405412242,0.18043656,111460.0,111450.0,0.52325395]
[1761405414233,0.001,111460.0,111450.0,0.52325395]
[1761405420417,0.18043656,111460.0,111450.0,0.52325395]
[1761405420828,0.18043656,111460.0,111450.0,0.78960935]
[1761405421029,0.001,111460.0,111450.0,0.78960935]
[1761405422975,0.001,111460.0,111450.0,0.78660935]
[1761405423155,0.17942108,111470.0,111460.0,0.21561884]
[1761405423481,0.17942108,111470.0,111460.0,0.57179325]
[1761405423740,0.17942108,111470.0,111460.0,0.30543785]
[1761405423943,0.17942108,111470.0,111460.0,0.57179325]
[1761405424331,0.17942108,111470.0,111460.0,0.31043785]
[1761405424548,0.18042108,111470.0,111460.0,0.31043785]
[1761405426738,0.20734841,111470.0,111460.0,0.31043785]
[1761405428119,0.02792733,111470.0,111460.0,0.31043785]
[1761405435964,0.02792733,111470.0,111460.0,0.36783785]
[1761405438761,0.02792733,111470.0,111460.0,0.63419325]
[1761405439843,0.02792733,111470.0,111460.0,0.36783785]
[1761405439999,0.02792733,111470.0,111460.0,0.63419325]
[1761405443768,0.02792733,111470.0,111460.0,0.64317892]
[1761405446436,0.02792733,111470.0,111460.0,0.63419325]
[1761405447710,0.02792733,111470.0,111460.0,0.63819325]
[1761405449023,0.02792733,111470.0,111460.0,0.37183785]
[1761405449261,0.02792733,111470.0,111460.0,0.63819325]
[1761405456880,0.02792733,111470.0,111460.0,0.37183785]
[1761405457094,0.02792733,111470.0,111460.0,0.63819325]
[1761405458492,0.02792733,111470.0,111460.0,0.37183785]
[1761405461170,0.001,111470.0,111460.0,0.37183785]
[1761405462363,0.18042047,111470.0,111460.0,0.37183785]
[1761405466690,0.18042047,111470.0,111460.0,0.31443785]
[1761405468987,0.18042047,111470.0,111460.0,0.13500129]
[1761405469680,0.44677587,111470.0,111460.0,0.13500129]
[1761405471628,0.44677587,111470.0,111460.0,0.29232129]
[1761405471963,0.47370371,111470.0,111460.0,0.29232129]
[1761405473188,0.47370371,111470.0,111460.0,0.25613901]
[1761405473398,0.47370371,111470.0,111460.0,0.29232129]
[1761405482879,0.20734831,111470.0,111460.0,0.29232129]
[1761405483922,0.50336044,111470.0,111460.0,0.29232129]
[1761405484283,0.20734831,111470.0,111460.0,0.29232129]
[1761405531564,0.20728544,111470.0,111460.0,0.29232129]
[1761405543120,0.20728544,111470.0,111460.0,0.13500129]
[1761405543315,0.20728544,111470.0,111460.0,0.29228129]
[1761405544807,0.47367908,111470.0,111460.0,0.29228129]
[1761405546224,0.47367908,111470.0,111460.0,0.09881901]
[1761405562058,0.20728544,111470.0,111460.0,0.13500129]
[1761405562200,0.36456544,111470.0,111460.0,0.13500129]
[1761405562412,0.20728544,111470.0,111460.0,0.13500129]
[1761405562894,0.47367908,111470.0,111460.0,0.13500129]
[1761405569571,0.47394666,111470.0,111460.0,0.13500129]
[1761405571035,0.20755302,111470.0,111460.0,0.13500129]
[1761405572276,0.47394666,111470.0,111460.0,0.13500129]
[1761405573023,0.20755302,111470.0,111460.0,0.13500129]
[1761405584543,0.20755302,111470.0,111460.0,0.15294494]
[1761405584745,0.20755302,111470.0,111460.0,0.13500129]
[1761405584982,0.20755302,111470.0,111460.0,0.15294494]
[1761405586417,0.20755302,111470.0,111460.0,0.13500129]
[1761405587380,0.20755302,111470.0,111460.0,0.15294494]
[1761405587815,0.20755302,111470.0,111460.0,0.13500129]
[1761405592427,0.20755302,111470.0,111460.0,0.15294494]
[1761405595642,0.20755302,111470.0,111460.0,0.13500129]
[1761405598215,0.20755302,111470.0,111460.0,0.3323815]
[1761405598423,0.20755302,111470.0,111460.0,0.31443785]
[1761405600518,0.20755302,111470.0,111460.0,0.13500129]
[1761405601507,0.47394666,111470.0,111460.0,0.13500129]
[1761405601795,0.47394666,111470.0,111460.0,0.29228129]
[1761405602229,0.47394666,111470.0,111460.0,0.13500129]
[1761405602446,0.47394666,111470.0,111460.0,0.29228129]
[1761405604779,0.20755302,111470.0,111460.0,0.29228129]
[1761405637311,0.20755302,111470.0,111460.0,0.13500129]
[1761405637518,0.50354721,111470.0,111460.0,0.09881901]
[1761405650424,0.20755302,111470.0,111460.0,0.09881901]
[1761405666891,0.47397106,111470.0,111460.0,0.09881901]
[1761405669488,0.47397106,111470.0,111460.0,0.07190503]
[1761405676486,0.56379007,111470.0,111460.0,0.07190503]
[1761405680337,0.47397106,111470.0,111460.0,0.009]
[1761405681561,0.47303393,111470.0,111460.0,0.004]
[1761405681969,0.47703393,111470.0,111460.0,0.005]
[1761405699479,0.21061589,111470.0,111460.0,0.005]
[1761405699689,0.47703393,111470.0,111460.0,0.09481901]
[1761405699900,0.63427393,111470.0,111460.0,0.09481901]
[1761405702012,0.47703393,111470.0,111460.0,0.09481901]
[1761405702772,0.21061589,111470.0,111460.0,0.09481901]
[1761405702973,0.47703393,111470.0,111460.0,0.09481901]
[1761405703259,0.21061589,111470.0,111460.0,0.09481901]
[1761405703457,0.47703393,111470.0,111460.0,0.09481901]
[1761405706399,0.21061589,111470.0,111460.0,0.09481901]
[1761405713365,0.47703393,111470.0,111460.0,0.09481901]
[1761405715493,0.21061589,111470.0,111460.0,0.09481901]
[1761405736562,0.21061589,111470.0,111460.0,5.09481901]
[1761405752113,0.50656926,111470.0,111460.0,5.09481901]
[1761405760911,0.21061589,111470.0,111460.0,5.09481901]
[1761405782200,0.21055179,111470.0,111460.0,5.09481901]
[1761405828795,0.21046208,111470.0,111460.0,5.09481901]
[1761405834476,0.211924,111470.0,111460.0,5.09481901]
[1761405841329,0.211924,111470.0,111460.0,5.08966033]
[1761405871535,0.211924,111470.0,111460.0,5.26909689]
[1761405873392,0.03265734,111470.0,111460.0,5.30527917]
[1761405873622,0.0057295,111470.0,111460.0,5.30527917]
[1761405873803,0.0057295,111470.0,111460.0,5.3322071]
[1761405875895,0.0017295,111470.0,111460.0,5.3322071]
[1761405876344,0.0037295,111470.0,111460.0,5.3332071]
[1761405891959,0.0037295,111470.0,111460.0,5.3906071]
[1761405894940,0.0037295,111470.0,111460.0,5.5477271]
[1761405900381,0.18314997,111470.0,111460.0,5.11758826]
[1761405900589,0.18314997,111470.0,111460.0,5.28396261]
[1761405900791,0.18314997,111470.0,111460.0,5.24778033]
[1761405900989,0.18314997,111470.0,111460.0,5.28396261]
[1761405901465,0.18314997,111470.0,111460.0,5.46339917]
[1761405909121,0.0037295,111470.0,111460.0,5.46339917]
[1761405909969,0.18314997,111470.0,111460.0,5.46339917]
[1761405912004,0.0037295,111470.0,111460.0,5.46339917]
[1761405931798,0.0037295,111470.0,111460.0,5.30627917]
[1761405932246,0.01970644,111470.0,111460.0,5.30627917]
[1761405932451,0.0037295,111470.0,111460.0,5.46339917]
[1761405932646,0.0306585,111470.0,111460.0,5.46339917]
[1761405932906,0.21007897,111470.0,111460.0,5.46339917]
[1761405933313,0.21007897,111470.0,111460.0,5.28396261]
[1761405935133,0.21007897,111470.0,111460.0,5.46339917]
[1761405937009,0.21007897,111470.0,111460.0,5.28396261]
[1761405937365,0.21007897,111470.0,111460.0,5.46339917]
[1761405942974,0.18314997,111470.0,111460.0,5.46339917]
[1761405943672,0.18314997,111470.0,111460.0,5.28396261]
[1761405943903,0.18314997,111470.0,111460.0,5.46339917]
[1761405950204,0.18314997,111470.0,111460.0,5.52079917]
[1761405952404,0.18714997,111470.0,111460.0,5.52079917]
[1761405953554,0.0077295,111470.0,111460.0,5.52079917]
[1761405953885,0.18714997,111470.0,111460.0,5.52079917]
[1761405963366,0.0077295,111470.0,111460.0,5.52079917]
[1761405964245,0.18714997,111470.0,111460.0,5.52079917]
[1761405968541,0.0077295,111470.0,111460.0,5.52079917]
[1761405976449,0.0077295,111470.0,111460.0,5.54772401]
[1761405977308,0.0057295,111470.0,111460.0,5.54772401]
[1761405977536,0.0067295,111470.0,111460.0,5.55272401]
[1761405977748,0.0057295,111470.0,111460.0,5.54672401]
[1761405978143,0.0067295,111470.0,111460.0,5.55172401]
[1761405979145,0.0067295,111470.0,111460.0,5.55272401]
[1761405982219,0.0067295,111470.0,111460.0,5.70242401]
[1761405988098,0.0067295,111470.0,111460.0,5.55272401]
[1761406026337,0.0067295,111470.0,111460.0,5.52579917]
[1761406026541,0.0067295,111470.0,111460.0,5.67549917]
[1761406028774,0.0067295,111470.0,111460.0,5.52579917]
[1761406032587,0.0067295,111470.0,111460.0,5.67549917]
[1761406047746,0.0067295,111470.0,111460.0,6.01549917]
[1761406055431,0.0067295,111470.0,111460.0,6.02549915]
[1761406057524,0.0067295,111470.0,111460.0,6.02449915]
[1761406057997,0.0067295,111470.0,111460.0,6.02549915]
[1761406058329,0.0057295,111470.0,111460.0,6.02049915]
[1761406058707,0.0067295,111470.0,111460.0,6.02449915]
[1761406064949,0.0067295,111470.0,111460.0,6.22449915]
[1761406065127,0.0067295,111470.0,111460.0,6.23449914]
[1761406065333,0.0067295,111470.0,111460.0,6.2614157]
[1761406065935,0.0057295,111470.0,111460.0,6.2574157]
[1761406066131,0.0057295,111470.0,111460.0,6.2584157]
[1761406066518,0.0057295,111470.0,111460.0,6.2594157]
[1761406067080,0.0057295,111470.0,111460.0,6.24841571]
[1761406067282,0.0057295,111470.0,111460.0,6.2604157]
[1761406067716,0.0057295,111470.0,111460.0,6.2584157]
[1761406067895,0.0057295,111470.0,111460.0,6.2564157]
[1761406068106,0.0057295,111470.0,111460.0,6.2634157]
[1761406068518,0.0057295,111470.0,111460.0,6.2584157]
[1761406068762,0.0057295,111470.0,111460.0,6.2634157]
[1761406068981,0.0057295,111470.0,111460.0,6.25341571]
[1761406069194,0.0057295,111470.0,111460.0,6.2634157]
[1761406078564,0.0057295,111470.0,111460.0,6.43277571]
[1761406078766,0.0057295,111470.0,111460.0,6.4427757]
[1761406079114,0.0057295,111470.0,111460.0,6.43277571]
[1761406079323,0.0057295,111470.0,111460.0,6.4427757]
[1761406083239,0.0057295,111470.0,111460.0,6.43277571]
[1761406083396,0.0057295,111470.0,111460.0,6.4427757]
[1761406084429,0.0057295,111470.0,111460.0,6.0488957]
[1761406084637,0.0057295,111470.0,111460.0,6.06667917]
[1761406089299,0.0057295,111470.0,111460.0,5.65227917]
[1761406089458,0.0057295,111470.0,111460.0,5.33345689]
[1761406089667,0.0057295,111470.0,111460.0,5.49053689]
[1761406090065,0.0057295,111470.0,111460.0,5.52671917]
[1761406090492,0.0057295,111470.0,111460.0,5.52171917]
[1761406090750,0.0057295,111470.0,111460.0,5.52371917]
[1761406091064,0.0057295,111470.0,111460.0,5.51971917]
[1761406091364,0.0067295,111470.0,111460.0,5.52071917]
[1761406091933,0.0067295,111470.0,111460.0,5.51971917]
[1761406092137,0.0067295,111470.0,111460.0,5.52071917]
[1761406196744,0.0067295,111470.0,111460.0,5.34128261]
[1761406197143,0.0067295,111470.0,111460.0,5.52071917]
[1761406206784,0.0067295,111470.0,111460.0,5.54764263]
[1761406216254,0.18614997,111470.0,111460.0,5.09066033]
[1761406216467,0.20212691,111470.0,111460.0,5.09066033]
[1761406216712,0.21307766,111470.0,111460.0,5.24774033]
[1761406217132,0.21307766,111470.0,111460.0,5.28292261]
[1761406217576,0.21207766,111470.0,111460.0,5.28292261]
[1761406217790,0.21907766,111470.0,111460.0,5.28392261]
[1761406244673,0.19214997,111470.0,111460.0,5.28392261]
[1761406252631,0.19214997,111470.0,111460.0,5.24778033]
[1761406252838,0.55908073,111470.0,111460.0,5.24778033]
[1761406254025,0.55908073,111470.0,111460.0,5.09066033]
[1761406254221,0.55908073,111470.0,111460.0,5.24778033]
[1761406255846,0.55908073,111470.0,111460.0,5.001]
[1761406256053,0.55908073,111470.0,111460.0,5.15812]
[1761406260073,0.55908073,111470.0,111460.0,5.001]
[1761406265974,0.92744944,111470.0,111460.0,4.41885377]
[1761406266180,0.69979308,111470.0,111460.0,4.41885377]
[1761406266389,0.85695308,111470.0,111460.0,4.41885377]
[1761406266591,0.79959308,111470.0,111460.0,4.41885377]
[1761406267425,0.79259308,111470.0,111460.0,4.41785377]
[1761406267831,0.80459308,111470.0,111460.0,4.41885377]
[1761406269800,0.80448327,111470.0,111460.0,4.41885377]
[1761406289173,0.82858775,111470.0,111460.0,4.41885377]
[1761406292556,0.67138775,111470.0,111460.0,4.41885377]
[1761406292765,0.82858775,111470.0,111460.0,4.41885377]
[1761406294748,0.82807815,111470.0,111460.0,4.41885377]
[1761406295175,0.86021746,111470.0,111460.0,4.41885377]
[1761406299426,0.33087815,111470.0,111460.0,4.41885377]
[1761406299637,0.48807815,111470.0,111460.0,4.41885377]
[1761406299822,0.82807815,111470.0,111460.0,4.41885377]
[1761406300267,0.80397367,111470.0,111460.0,4.41885377]
[1761406300895,0.82807815,111470.0,111460.0,4.41885377]
[1761406301302,0.80397367,111470.0,111460.0,4.41885377]
[1761406309340,0.78469102,111470.0,111460.0,4.41885377]
[1761406310439,0.80399163,111470.0,111460.0,4.41885377]
[1761406315832,0.8281174,111470.0,111460.0,4.41885377]
[1761406316099,0.82700731,111470.0,111460.0,4.41885377]
[1761406321962,0.82811738,111470.0,111460.0,4.41885377]
[1761406328623,0.91793639,111470.0,111460.0,3.93837199]
[1761406328846,1.00822061,111470.0,111460.0,3.47405691]
[1761406329058,1.00822061,111470.0,111460.0,3.16591873]
[1761406329059,1.03234638,111470.0,111460.0,3.16591873]
[1761406329280,1.03234638,111470.0,111460.0,2.94006196]
[1761406329519,1.03234638,111470.0,111460.0,2.65789761]
[1761406329720,1.03234638,111470.0,111460.0,2.36771381]
[1761406329933,1.03234638,111470.0,111460.0,2.18148025]
[1761406330145,1.03234638,111470.0,111460.0,1.93613494]
[1761406330290,1.03234638,111470.0,111460.0,1.71243638]
[1761406330489,1.03234638,111470.0,111460.0,1.64704148]
[1761406330707,1.02034638,111470.0,111460.0,1.50983595]
[1761406330914,1.03834638,111470.0,111460.0,1.29638171]
[1761406331122,0.99622061,111470.0,111460.0,1.05081501]
[1761406331513,1.02722061,111470.0,111460.0,0.80019567]
[1761406340670,1.05134638,111470.0,111460.0,0.80019567]
[1761406341607,1.08351407,111470.0,111460.0,0.80019567]
[1761406342651,1.0593883,111470.0,111460.0,0.80019567]
[1761406343607,1.06029586,111470.0,111440.0,0.0041469]
[1761406343855,0.51945266,111450.0,111440.0,0.0041469]
[1761406344069,0.81456257,111450.0,111440.0,0.0041469]
[1761406344845,0.68426366,111450.0,111440.0,0.0041469]
[1761406345053,0.84150366,111450.0,111440.0,0.0041469]
[1761406345279,0.84150366,111450.0,111440.0,0.0071469]
[1761406345280,0.85450366,111450.0,111440.0,0.0071469]
[1761406346117,0.92310392,111450.0,111440.0,0.0071469]
[1761406347109,0.92510392,111450.0,111440.0,0.0071469]
[1761406349177,0.9257801,111450.0,111440.0,0.0071469]
[1761406350527,0.9345761,111450.0,111440.0,0.0071469]
[1761406353572,0.95386908,111450.0,111440.0,0.0071469]
[1761406355550,0.79662908,111450.0,111440.0,0.0071469]
[1761406355767,0.95386908,111450.0,111440.0,0.0071469]
[1761406365072,0.92692799,111450.0,111440.0,0.0071469]
[1761406368221,0.76968799,111450.0,111440.0,0.0071469]
[1761406368478,0.91809199,111450.0,111440.0,0.0071469]
[1761406368911,0.63489173,111450.0,111440.0,0.0071469]
[1761406369124,0.79213173,111450.0,111440.0,0.0071469]
[1761406376316,0.63489173,111450.0,111440.0,0.0071469]
[1761406376538,0.79213173,111450.0,111440.0,0.0071469]
[1761406378112,0.79209173,111450.0,111440.0,0.0071469]
[1761406384323,0.63489173,111450.0,111440.0,0.0071469]
[1761406384670,0.79209173,111450.0,111440.0,0.0071469]
[1761406394854,0.71162182,111450.0,111440.0,0.0071469]
[1761406395442,0.55442182,111450.0,111440.0,0.0071469]
[1761406400863,0.55442182,111450.0,111440.0,0.09696591]
[1761406401096,0.21442182,111450.0,111440.0,0.09696591]
[1761406401315,0.19512884,111450.0,111440.0,0.09696591]
[1761406401529,0.19312884,111450.0,111440.0,0.09696591]
[1761406401737,0.53312884,111450.0,111440.0,0.09696591]
[1761406401948,0.52112884,111450.0,111440.0,0.09396591]
[1761406402278,0.52812884,111450.0,111440.0,0.09396591]
[1761406403605,0.52712884,111450.0,111440.0,0.09396591]
[1761406404092,0.52712884,111450.0,111440.0,0.11191278]
[1761406406173,0.34767618,111450.0,111440.0,0.11191278]
[1761406406923,0.52712884,111450.0,111440.0,0.11191278]
[1761406408195,0.34767618,111450.0,111440.0,0.11191278]
[1761406408775,0.52712884,111450.0,111440.0,0.11191278]
[1761406412150,0.52712884,111450.0,111440.0,0.09396591]
[1761406417811,0.34767618,111450.0,111440.0,0.27343468]
[1761406424203,0.00767618,111450.0,111440.0,0.27343468]
[1761406425881,0.00767618,111450.0,111440.0,0.30961696]
[1761406426109,0.00767618,111450.0,111440.0,0.33655094]
[1761406427294,0.00067618,111450.0,111440.0,0.33655094]
[1761406427499,0.00767618,111450.0,111440.0,0.33655094]
[1761406470335,0.18712884,111450.0,111440.0,0.30961696]
[1761406470717,0.2140619,111450.0,111440.0,0.30961696]
[1761406475184,0.2070619,111450.0,111440.0,0.30961696]
[1761406475520,0.2110619,111450.0,111440.0,0.31161696]
[1761406478209,0.03160924,111450.0,111440.0,0.31161696]
[1761406485636,0.00467618,111450.0,111440.0,0.31161696]
[1761406495426,0.54010578,111450.0,111440.0,0.0061469]
[1761406495644,0.62001551,111450.0,111440.0,0.0061469]
[1761406495857,0.64695208,111450.0,111440.0,0.0061469]
[1761406497323,0.5703735,111450.0,111440.0,0.0061469]
[1761406498237,0.55106541,111450.0,111440.0,0.0061469]
[1761406502874,0.55106541,111450.0,111440.0,0.09596591]
[1761406525273,0.57037679,111450.0,111440.0,0.09663391]
[1761406526112,0.57037679,111450.0,111440.0,0.0068149]
[1761406526327,0.57037679,111450.0,111440.0,0.09663391]
[1761406527190,0.57037758,111450.0,111440.0,0.09663391]
[1761406528497,0.57037758,111450.0,111440.0,0.27610268]
[1761406541746,0.54344101,111450.0,111440.0,0.27610268]
[1761406545337,0.63326002,111450.0,111440.0,0.27610268]
[1761406546649,0.63326002,111450.0,111440.0,0.09663391]
[1761406546814,0.63326002,111450.0,111440.0,0.0068149]
[1761406547033,0.6601968,111450.0,111440.0,0.0068149]
[1761406566519,0.63326002,111450.0,111440.0,0.0068149]
[1761406569004,0.63326002,111450.0,111440.0,0.18628367]
[1761406569232,0.63326002,111450.0,111440.0,0.0068149]
[1761406601623,0.63326002,111450.0,111440.0,0.27610268]
[1761406601624,0.36398835,111450.0,111440.0,0.27610268]
[1761406602027,0.52118835,111450.0,111440.0,0.27610268]
[1761406602498,0.00467618,111450.0,111440.0,0.31228496]
[1761406606515,0.00467618,111450.0,111440.0,0.33921879]
[1761406607457,0.00467618,111450.0,111440.0,0.49641879]
[1761406634911,0.00467618,111450.0,111440.0,0.89381879]
[1761406635344,1e-08,111450.0,111440.0,0.89381879]
[1761406636267,0.004,111470.0,111460.0,0.17943656]
[1761406636475,0.004,111470.0,111460.0,0.44439922]
[1761406636684,0.004,111470.0,111460.0,0.42645557]
[1761406636904,0.00443395,111470.0,111460.0,0.42645557]
[1761406637184,0.00443395,111470.0,111460.0,0.45338077]
[1761406637689,0.00643395,111470.0,111460.0,0.45438077]
[1761406667625,0.00643395,111470.0,111460.0,0.51178077]
[1761406686596,0.00643395,111470.0,111460.0,0.48485557]
[1761406707394,0.00643395,111470.0,111460.0,0.52103785]
[1761406709042,0.00643395,111470.0,111460.0,0.52203785]
[1761406709241,0.00443395,111470.0,111460.0,0.52103785]
[1761406709795,0.00443395,111470.0,111460.0,0.52003785]
[1761406709947,0.00643395,111470.0,111460.0,0.53003785]
[1761406710152,0.00843395,111470.0,111460.0,0.53903785]
[1761406719032,0.00843395,111470.0,111460.0,0.87903785]
[1761406719241,1e-08,111470.0,111460.0,0.87903785]
[1761406719667,1e-08,111470.0,111460.0,0.90595781]
[1761406730511,1e-08,111470.0,111460.0,1.05565781]
[1761406749013,1e-08,111470.0,111460.0,1.06565779]
[1761406749901,1e-08,111470.0,111460.0,1.06465779]
[1761406750316,1e-08,111470.0,111460.0,1.06665779]
[1761406751089,0.008,111500.0,111490.0,0.21557056]
[1761406751325,0.008,111500.0,111490.0,0.51982957]
[1761406751725,0.00865069,111500.0,111490.0,0.51982957]
[1761406752376,0.00869987,111500.0,111490.0,0.51982957]